fUST/lending_fUST_20240924
["ID","MTS","AMOUNT","RATE_DAILY","PERIOD"]
[339011970,1727122239974,-500.0,0.00032876,30]
[339011971,1727122239984,-500.0,0.00032876,30]
[339011972,1727122239993,-505.61698005,0.00032876,30]
[339011973,1727122240003,-500.69606926,0.00032876,7]
[339011974,1727122240013,-501.44171087,0.00032876,30]
[339011975,1727122240022,-500.0,0.00032876,30]
[339011976,1727122240032,-500.0,0.00032876,30]
[339011977,1727122240041,-2676.66,0.00032876,30]
[339011978,1727122240050,-500.0,0.00032876,30]
[339011979,1727122240060,-500.0,0.00032876,30]
[339011980,1727122240071,-500.0,0.00032876,30]
[339011981,1727122240080,-500.0,0.00032876,30]
[339011982,1727122240091,-327.40951516,0.00032876,30]
[339011983,1727122240102,-500.0,0.00032876,30]
[339011984,1727122240112,-608.59,0.00032876,30]
[339011985,1727122240121,-500.0,0.00032876,30]
[339011986,1727122240131,-500.0,0.00032876,30]
[339011987,1727122240141,-500.0,0.00032876,30]
[339011988,1727122240151,-500.0,0.00032876,30]
[339011989,1727122240160,-500.0,0.00032876,30]
[339011991,1727122240172,-652.89,0.00032876,30]
[339011993,1727122240183,-500.0,0.00032876,30]
[339011994,1727122240193,-238.88095547,0.00032876,30]
[339011995,1727122240203,-523.82196034,0.00032876,30]
[339011997,1727122240213,-642.47,0.00032876,30]
[339011999,1727122240222,-500.0,0.00032876,30]
[339012000,1727122240231,-500.0,0.00032876,30]
[339012001,1727122240240,-367.49370733,0.00032876,30]
[339012002,1727122240250,-500.0,0.00032876,30]
[339012003,1727122240260,-1085.41,0.00032876,7]
[339012004,1727122240270,-500.0,0.00032876,30]
[339012005,1727122240279,-500.0,0.00032876,30]
[339012006,1727122240289,-500.0,0.00032876,30]
[339012007,1727122240299,-500.0,0.00032876,30]
[339012008,1727122240308,-500.0,0.00032876,30]
[339012009,1727122240317,-500.0,0.00032876,30]
[339012010,1727122240327,-634.81,0.00032876,30]
[339012011,1727122240337,-500.0,0.00032876,30]
[339012012,1727122240346,-500.0,0.00032876,30]
[339012013,1727122240357,-500.0,0.00032876,30]
[339012014,1727122240366,-711.31,0.00032876,30]
[339012015,1727122240376,-518.58,0.00032876,30]
[339012016,1727122240386,-500.0,0.00032876,30]
[339012017,1727122240396,-500.0,0.00032876,30]
[339012018,1727122240406,-500.0,0.00032876,30]
[339012019,1727122240415,-500.0,0.00032876,30]
[339012020,1727122240425,-500.0,0.00032876,30]
[339012021,1727122240435,-500.0,0.00032876,30]
[339012022,1727122240445,-500.0,0.00032876,2]
[339012023,1727122240454,-691.47,0.00032876,7]
[339012024,1727122240464,-497.48238448,0.00032876,30]
[339012025,1727122240474,-500.0,0.00032876,30]
[339012026,1727122240483,-500.0,0.00032876,30]
[339012027,1727122240493,-500.0,0.00032876,30]
[339012028,1727122240502,-500.0,0.00032876,30]
[339012029,1727122240513,-500.0,0.00032876,30]
[339012030,1727122240522,-500.0,0.00032876,30]
[339012031,1727122240532,-457.46748162,0.00032876,30]
[339012032,1727122240542,-500.0,0.00032876,30]
[339012033,1727122240551,-500.0,0.00032876,30]
[339012034,1727122240562,-500.0,0.00032876,30]
[339012035,1727122240571,-500.0,0.00032876,30]
[339012036,1727122240581,-500.0,0.00032876,30]
[339012037,1727122240591,-500.0,0.00032876,30]
[339012038,1727122240601,-500.0,0.00032876,30]
[339012039,1727122240610,-500.0,0.00032876,30]
[339012040,1727122240619,-521.23,0.00032876,30]
[339012041,1727122240629,-500.0,0.00032876,30]
[339012042,1727122240639,-500.0,0.00032876,30]
[339012043,1727122240649,-738.11,0.00032876,2]
[339012044,1727122240659,-1350.97,0.00032876,30]
[339012045,1727122240669,-500.0,0.00032876,30]
[339012046,1727122240678,-502.49129658,0.00032876,30]
[339012047,1727122240688,-502.8743591,0.00032876,7]
[339012048,1727122240697,-200.0,0.00032876,7]
[339012049,1727122240707,-500.0,0.00032876,30]
[339012050,1727122240717,-500.0,0.00032876,30]
[339012051,1727122240728,-500.0,0.00032876,30]
[339012052,1727122240738,-594.5,0.00032876,30]
[339012053,1727122240748,-500.0,0.00032876,30]
[339012054,1727122240757,-500.0,0.00032876,30]
[339012055,1727122240767,-500.0,0.00032876,30]
[339012056,1727122240776,-500.0,0.00032876,30]
[339012057,1727122240786,-531.10632031,0.00032876,30]
[339012058,1727122240795,-511.17,0.00032876,30]
[339012059,1727122240805,-795.97,0.00032876,30]
[339012060,1727122240815,-500.0,0.00032876,30]
[339012061,1727122240825,-500.0,0.00032876,30]
[339012062,1727122240835,-521.45,0.00032876,30]
[339012063,1727122240844,-500.0,0.00032876,30]
[339012064,1727122240854,-320.54793336,0.00032876,30]
[339012065,1727122240863,-500.0,0.00032876,30]
[339012066,1727122240872,-500.0,0.00032876,30]
[339012067,1727122240881,-500.0,0.00032876,30]
[339012068,1727122240891,-500.0,0.00032876,30]
[339012069,1727122240901,-500.0,0.00032876,30]
[339012070,1727122240910,-500.0,0.00032876,30]
[339012071,1727122240919,-500.0,0.00032876,30]
[339012072,1727122240928,-500.0,0.00032876,30]
[339012073,1727122240937,-500.0,0.00032876,30]
[339012074,1727122240947,-500.0,0.00032876,30]
[339012075,1727122240956,-500.0,0.00032876,30]
[339012076,1727122240965,-500.0,0.00032876,30]
[339012077,1727122240976,-500.0,0.00032876,30]
[339012078,1727122240985,-500.0,0.00032876,30]
[339012079,1727122240994,-500.0,0.00032876,30]
[339012080,1727122241003,-500.0,0.00032876,30]
[339012081,1727122241013,-500.0,0.00032876,30]
[339012082,1727122241022,-500.0,0.00032876,30]
[339012083,1727122241031,-500.0,0.00032876,30]
[339012084,1727122241041,-500.0,0.00032876,30]
[339012085,1727122241050,-500.0,0.00032876,30]
[339012086,1727122241062,-500.0,0.00032876,30]
[339012087,1727122241072,-1000.0,0.00032876,120]
[339012088,1727122241081,-500.0,0.00032876,30]
[339012089,1727122241091,-500.0,0.00032876,30]
[339012090,1727122241102,-500.0,0.00032876,30]
[339012091,1727122241111,-500.0,0.00032876,30]
[339012092,1727122241121,-500.0,0.00032876,30]
[339012093,1727122241130,-500.0,0.00032876,30]
[339012094,1727122241140,-500.0,0.00032876,30]
[339012095,1727122241149,-500.0,0.00032876,30]
[339012096,1727122241159,-500.0,0.00032876,30]
[339012097,1727122241169,-201.18,0.00032876,30]
[339012098,1727122241179,-500.0,0.00032876,30]
[339012099,1727122241188,-500.14,0.00032876,30]
[339012100,1727122241198,-500.0,0.00032876,30]
[339012101,1727122241207,-500.0,0.00032876,30]
[339012102,1727122241217,-504.97519229,0.00032876,30]
[339012103,1727122241227,-1696.32,0.00032876,30]
[339012104,1727122241236,-500.0,0.00032876,30]
[339012105,1727122241245,-500.0,0.00032876,30]
[339012106,1727122241255,-500.0,0.00032876,30]
[339012107,1727122241264,-500.0,0.00032876,30]
[339012108,1727122241274,-500.0,0.00032876,30]
[339012109,1727122241284,-299.24348267,0.00032876,30]
[339012110,1727122241294,-500.0,0.00032876,30]
[339012111,1727122241304,-500.0,0.00032876,30]
[339012112,1727122241314,-500.0,0.00032876,30]
[339012113,1727122241323,-500.0,0.00032876,30]
[339012114,1727122241333,-580.78,0.00032876,25]
[339012115,1727122241343,-500.0,0.00032876,30]
[339012116,1727122241352,-500.0,0.00032876,30]
[339012117,1727122241362,-500.0,0.00032876,30]
[339012118,1727122241371,-500.0,0.00032876,30]
[339012119,1727122241381,-500.0,0.00032876,30]
[339012120,1727122241390,-500.0,0.00032876,30]
[339012121,1727122241399,-500.0,0.00032876,30]
[339012122,1727122241409,-500.0,0.00032876,120]
[339012123,1727122241419,-632.75682635,0.00032876,30]
[339012124,1727122241429,-500.0,0.00032876,30]
[339012125,1727122241439,-500.0,0.00032876,30]
[339012126,1727122241448,-500.0,0.00032876,30]
[339012127,1727122241458,-500.0,0.00032876,30]
[339012128,1727122241468,-500.0,0.00032876,30]
[339012129,1727122241478,-1000.0,0.00032876,30]
[339012130,1727122241495,-1156.57,0.00032876,30]
[339012131,1727122241504,-500.0,0.00032876,30]
[339012132,1727122241513,-500.0,0.00032876,30]
[339012133,1727122241523,-500.0,0.00032876,30]
[339012134,1727122241533,-500.0,0.00032876,30]
[339012135,1727122241542,-500.0,0.00032876,30]
[339012136,1727122241552,-500.0,0.00032876,30]
[339012137,1727122241562,-500.0,0.00032876,30]
[339012138,1727122241572,-500.0,0.00032876,30]
[339012139,1727122241582,-500.0,0.00032876,30]
[339012140,1727122241592,-500.0,0.00032876,30]
[339012141,1727122241603,-500.0,0.00032876,30]
[339012142,1727122241612,-561.7169264,0.00032876,30]
[339012143,1727122241622,-500.0,0.00032876,30]
[339012144,1727122241632,-500.0,0.00032876,30]
[339012145,1727122241642,-500.0,0.00032876,30]
[339012146,1727122241652,-501.63733508,0.00032876,30]
[339012147,1727122241661,-500.0,0.00032876,30]
[339012148,1727122241671,-500.0,0.00032876,30]
[339012149,1727122241680,-637.64,0.00032876,30]
[339012150,1727122241690,-500.0,0.00032876,30]
[339012151,1727122241700,-500.0,0.00032876,30]
[339012152,1727122241710,-500.0,0.00032876,30]
[339012153,1727122241719,-23270.67,0.00032876,18]
[339012154,1727122241733,-500.0,0.00032876,30]
[339012155,1727122241743,-500.0,0.00032876,30]
[339012156,1727122241752,-500.0,0.00032876,30]
[339012157,1727122241762,-500.0,0.00032876,30]
[339012158,1727122241772,-500.0,0.00032876,30]
[339012159,1727122241782,-240.85102692,0.00032876,30]
[339012160,1727122241792,-500.0,0.00032876,30]
[339012161,1727122241802,-500.0,0.00032876,30]
[339012162,1727122241812,-597.85,0.00032876,30]
[339012163,1727122241821,-500.0,0.00032876,30]
[339012164,1727122241871,-500.0,0.00032876,30]
[339012165,1727122241880,-2703.37,0.00032876,21]
[339012166,1727122241890,-500.0,0.00032876,30]
[339012167,1727122241899,-500.0,0.00032876,30]
[339012168,1727122241908,-500.0,0.00032876,30]
[339012169,1727122241918,-500.0,0.00032876,30]
[339012170,1727122241928,-500.0,0.00032876,30]
[339012171,1727122241937,-500.0,0.00032876,30]
[339012172,1727122241946,-500.0,0.00032876,30]
[339012173,1727122241956,-606.08,0.00032876,30]
[339012174,1727122241965,-500.0,0.00032876,30]
[339012175,1727122241976,-500.0,0.00032876,30]
[339012176,1727122241985,-500.0,0.00032876,10]
[339012177,1727122241994,-500.0,0.00032876,30]
[339012178,1727122242004,-500.0,0.00032876,30]
[339012179,1727122242013,-316.92394055,0.00032876,30]
[339012180,1727122242022,-500.0,0.00032876,30]
[339012181,1727122242032,-500.0,0.00032876,30]
[339012182,1727122242040,-234.4630027,0.00032876,30]
[339012183,1727122242050,-500.0,0.00032876,30]
[339012184,1727122242059,-500.0,0.00032876,30]
[339012185,1727122242068,-500.0,0.00032876,30]
[339012186,1727122242078,-500.0,0.00032876,30]
[339012187,1727122242086,-507.30265881,0.00032876,30]
[339012188,1727122242098,-500.0,0.00032876,30]
[339012189,1727122242107,-500.0,0.00032876,30]
[339012190,1727122242116,-500.0,0.00032876,30]
[339012191,1727122242125,-500.0,0.00032876,30]
[339012192,1727122242134,-500.0,0.00032876,30]
[339012193,1727122242145,-500.0,0.00032876,30]
[339012194,1727122242154,-500.0,0.00032876,30]
[339012195,1727122242163,-500.0,0.00032876,30]
[339012196,1727122242175,-500.0,0.00032876,30]
[339012197,1727122242185,-500.0,0.00032876,30]
[339012198,1727122242194,-500.0,0.00032876,30]
[339012199,1727122242203,-500.0,0.00032876,30]
[339012200,1727122242212,-500.0,0.00032876,30]
[339012201,1727122242221,-500.0,0.00032876,30]
[339012202,1727122242233,-500.0,0.00032876,30]
[339012203,1727122242243,-500.0,0.00032876,30]
[339012204,1727122242253,-500.0,0.00032876,30]
[339012205,1727122242263,-500.0,0.00032876,30]
[339012206,1727122242272,-300.08556555,0.00032876,30]
[339012207,1727122242281,-500.0,0.00032876,30]
[339012208,1727122242291,-500.0,0.00032876,30]
[339012209,1727122242300,-500.0,0.00032876,30]
[339012210,1727122242309,-500.0,0.00032876,30]
[339012211,1727122242319,-500.0,0.00032876,30]
[339012212,1727122242328,-500.0,0.00032876,30]
[339012213,1727122242338,-500.0,0.00032876,30]
[339012214,1727122242347,-500.0,0.00032876,30]
[339012215,1727122242357,-500.0,0.00032876,30]
[339012216,1727122242366,-500.0,0.00032876,30]
[339012217,1727122242375,-939.65,0.00032876,30]
[339012218,1727122242384,-500.0,0.00032876,30]
[339012219,1727122242394,-500.0,0.00032876,30]
[339012220,1727122242403,-500.0,0.00032876,30]
[339012221,1727122242413,-500.0,0.00032876,30]
[339012222,1727122242423,-500.0,0.00032876,30]
[339012223,1727122242432,-876.02,0.00032876,30]
[339012224,1727122242442,-500.0,0.00032876,30]
[339012225,1727122242450,-500.0,0.00032876,30]
[339012226,1727122242460,-500.0,0.00032876,30]
[339012227,1727122242470,-500.0,0.00032876,30]
[339012228,1727122242480,-500.0,0.00032876,30]
[339012229,1727122242489,-500.0,0.00032876,30]
[339012230,1727122242498,-500.0,0.00032876,30]
[339012231,1727122242508,-500.0,0.00032876,30]
[339012232,1727122242517,-452.25630262,0.00032876,30]
[339012233,1727122242548,-660.72,0.00032836,3]
[339012234,1727122242558,-47.74369738,0.00032876,30]
[339012235,1727122242567,-272.92249803,0.00032876,30]
[339012236,1727122242579,-227.07750197,0.00032876,30]
[339012237,1727122242588,-500.0,0.00032876,30]
[339012238,1727122242597,-338.76726193,0.00032876,30]
[339012239,1727122242607,-500.0,0.00032876,30]
[339012240,1727122242616,-500.0,0.00032876,30]
[339012241,1727122242626,-500.0,0.00032876,30]
[339012242,1727122242636,-500.0,0.00032876,30]
[339012243,1727122242645,-500.0,0.00032876,2]
[339012244,1727122242655,-500.0,0.00032876,30]
[339012245,1727122242664,-500.0,0.00032876,30]
[339012246,1727122242673,-500.0,0.00032876,30]
[339012247,1727122242683,-500.0,0.00032876,30]
[339012248,1727122242692,-500.0,0.00032876,30]
[339012249,1727122242701,-500.0,0.00032876,30]
[339012250,1727122242711,-500.0,0.00032876,30]
[339012251,1727122242720,-500.0,0.00032876,30]
[339012252,1727122242730,-500.0,0.00032876,30]
[339012253,1727122242739,-500.0,0.00032876,30]
[339012254,1727122242749,-1050.71,0.00032876,30]
[339012255,1727122242758,-500.0,0.00032876,30]
[339012256,1727122242767,-283.35,0.00032876,30]
[339012257,1727122242777,-1132.97,0.00032876,30]
[339012258,1727122242786,-500.0,0.00032876,30]
[339012259,1727122242795,-500.0,0.00032876,30]
[339012260,1727122242805,-500.0,0.00032876,30]
[339012261,1727122242814,-500.0,0.00032876,30]
[339012262,1727122242824,-500.0,0.00032876,30]
[339012263,1727122242833,-500.0,0.00032876,30]
[339012265,1727122242842,-500.0,0.00032876,30]
[339012267,1727122242851,-455.68785366,0.00032876,30]
[339012269,1727122242860,-500.0,0.00032876,30]
[339012270,1727122242870,-500.0,0.00032876,30]
[339012271,1727122242879,-500.0,0.00032876,30]
[339012272,1727122242889,-247.68,0.00032876,30]
[339012273,1727122242899,-500.0,0.00032876,30]
[339012274,1727122242908,-500.0,0.00032876,30]
[339012275,1727122242917,-502.94436042,0.00032876,30]
[339012276,1727122242926,-491.12,0.00032876,30]
[339012278,1727122242936,-724.59,0.00032876,30]
[339012279,1727122242945,-500.0,0.00032876,30]
[339012281,1727122242955,-500.0,0.00032876,30]
[339012283,1727122242965,-500.0,0.00032876,30]
[339012285,1727122242974,-500.0,0.00032876,30]
[339012286,1727122242984,-500.0,0.00032876,30]
[339012287,1727122242994,-500.0,0.00032876,30]
[339012289,1727122243003,-500.0,0.00032876,30]
[339012291,1727122243012,-500.0,0.00032876,30]
[339012292,1727122243022,-500.0,0.00032876,30]
[339012293,1727122243032,-500.0,0.00032876,30]
[339012294,1727122243041,-500.0,0.00032876,30]
[339012295,1727122243050,-500.0,0.00032876,30]
[339012297,1727122243060,-500.0,0.00032876,30]
[339012299,1727122243070,-500.0,0.00032876,30]
[339012301,1727122243080,-500.0,0.00032876,30]
[339012302,1727122243089,-500.0,0.00032876,30]
[339012303,1727122243102,-500.0,0.00032876,30]
[339012305,1727122243112,-500.0,0.00032876,30]
[339012306,1727122243121,-500.0,0.00032876,30]
[339012307,1727122243131,-500.0,0.00032876,30]
[339012308,1727122243142,-500.0,0.00032876,30]
[339012309,1727122243153,-500.0,0.00032876,30]
[339012310,1727122243163,-501.80504278,0.00032876,30]
[339012312,1727122243173,-500.0,0.00032876,30]
[339012313,1727122243183,-500.0,0.00032876,30]
[339012314,1727122243192,-500.0,0.00032876,30]
[339012315,1727122243202,-500.0,0.00032876,5]
[339012316,1727122243212,-500.0,0.00032876,30]
[339012317,1727122243221,-500.0,0.00032876,30]
[339012318,1727122243231,-500.0,0.00032876,30]
[339012319,1727122243241,-500.0,0.00032876,30]
[339012320,1727122243250,-500.0,0.00032876,30]
[339012321,1727122243259,-500.0,0.00032876,30]
[339012322,1727122243269,-500.0,0.00032876,30]
[339012324,1727122243279,-1049.31,0.00032876,30]
[339012326,1727122243288,-500.0,0.00032876,30]
[339012328,1727122243297,-352.18168405,0.00032876,30]
[339012329,1727122243307,-500.0,0.00032876,30]
[339012330,1727122243317,-500.0,0.00032876,30]
[339012331,1727122243326,-500.0,0.00032876,30]
[339012332,1727122243336,-310.12,0.00032876,30]
[339012333,1727122243346,-500.0,0.00032876,30]
[339012334,1727122243356,-500.0,0.00032876,30]
[339012335,1727122243365,-500.0,0.00032876,30]
[339012336,1727122243375,-500.0,0.00032876,30]
[339012337,1727122243386,-500.0,0.00032876,30]
[339012338,1727122243395,-500.0,0.00032876,30]
[339012339,1727122243405,-500.0,0.00032876,30]
[339012340,1727122243414,-500.0,0.00032876,30]
[339012341,1727122243424,-500.0,0.00032876,30]
[339012342,1727122243434,-317.77437645,0.00032876,30]
[339012343,1727122243444,-21318.89451333,0.00032901,5]
[339012344,1727122243453,-187.5,0.00032931,7]
[339012345,1727122243463,-5374.27508851,0.00032981,5]
[339012346,1727122243473,-5374.27508851,0.00032991,5]
[339012347,1727122243485,-5374.27508851,0.00032993,5]
[339012348,1727122243495,-5472.46611499,0.00033001,5]
[339012358,1727122246182,-46.53195673,0.00032876,30]
[339012365,1727123230162,-202.0361392,0.00027254,2]
[339012366,1727123230184,-317.307022,0.00027397,2]
[339012367,1727123230206,-172.8752534,0.00027459,2]
[339012368,1727123230227,-250.0,0.00028065,2]
[339012369,1727123230252,-221.87568066,0.00028142,2]
[339012370,1727123238125,-28.12431934,0.00028142,2]
[339012371,1727123238147,-250.0,0.00028219,2]
[339012372,1727123238168,-250.0,0.00028296,2]
[339012373,1727123238191,-250.0,0.00028373,2]
[339012374,1727123238213,-158.27647581,0.0002845,2]
[339012375,1727123241142,-91.72352419,0.0002845,2]
[339012376,1727123241165,-250.0,0.00028527,2]
[339012377,1727123241187,-250.0,0.00028604,2]
[339012378,1727123241209,-250.0,0.00028681,2]
[339012379,1727123241231,-300.0,0.00028701,2]
[339012380,1727123241254,-964.38916602,0.00028702,2]
[339012381,1727123249095,-500.0,0.000282,7]
[339012382,1727123249115,-500.0,0.000282,7]
[339012383,1727123249135,-500.0,0.000282,7]
[339012384,1727123249155,-500.0,0.000282,7]
[339012385,1727123249176,-505.0062128,0.00028702,2]
[339012388,1727123318963,274.727163,0.00023,2]
[339012403,1727123432298,-2627.75533547,0.000285,2]
[339012449,1727123438759,-337.88308469,0.000285,2]
[339012451,1727123438770,-300.0,0.00028701,2]
[339012453,1727123438779,-300.0,0.00028701,2]
[339012455,1727123438789,-1889.41171131,0.00028702,2]
[339012457,1727123438802,-21541.19290987,0.00028702,2]
[339012459,1727123438812,-250.0,0.00028758,2]
[339012460,1727123438821,-250.0,0.00028835,2]
[339012461,1727123438831,-225.251611,0.00028904,2]
[339012462,1727123438840,-500.0,0.00028911,2]
[339012463,1727123438849,-213.95524337,0.00028911,2]
[339012464,1727123438859,-500.0,0.00028911,2]
[339012465,1727123438868,-500.0,0.00028911,2]
[339012466,1727123438877,-500.0,0.00028911,2]
[339012467,1727123438888,-500.0,0.00028911,2]
[339012468,1727123438899,-500.0,0.00028911,2]
[339012469,1727123438908,-500.0,0.00028911,2]
[339012470,1727123438918,-165.08081749,0.00028911,2]
[339012471,1727123438928,-500.0,0.00028911,2]
[339012472,1727123438937,-500.0,0.00028911,2]
[339012473,1727123438947,-500.0,0.00028911,2]
[339012474,1727123438956,-500.0,0.00028911,2]
[339012475,1727123438966,-500.0,0.00028911,2]
[339012476,1727123438975,-500.0,0.00028911,2]
[339012477,1727123438985,-500.0,0.00028911,2]
[339012478,1727123438995,-500.0,0.00028911,2]
[339012479,1727123439004,-500.0,0.00028911,2]
[339012480,1727123439013,-500.0,0.00028911,2]
[339012481,1727123439023,-500.0,0.00028911,2]
[339012482,1727123439033,-500.0,0.00028911,2]
[339012483,1727123439225,-500.0,0.00028911,2]
[339012484,1727123439234,-500.0,0.00028911,2]
[339012485,1727123439244,-409.17379792,0.00028911,2]
[339012486,1727123439254,-500.0,0.00028911,2]
[339012487,1727123439263,-500.0,0.00028911,2]
[339012488,1727123439273,-500.0,0.00028911,2]
[339012489,1727123439282,-500.0,0.00028911,2]
[339012490,1727123439292,-500.0,0.00028911,2]
[339012491,1727123439301,-500.0,0.00028911,2]
[339012492,1727123439311,-500.0,0.00028911,2]
[339012493,1727123439321,-250.0,0.00028912,2]
[339012494,1727123439331,-201.310423,0.00028954,2]
[339012495,1727123439340,-250.0,0.00028989,2]
[339012496,1727123439349,-250.0,0.00029066,2]
[339012497,1727123439359,-250.0,0.00029143,2]
[339012498,1727123439369,-250.0,0.0002922,2]
[339012499,1727123439379,-250.0,0.00029297,2]
[339012500,1727123439389,-250.0,0.00029374,2]
[339012501,1727123439399,-1130.23931154,0.00029433,2]
[339012502,1727123439409,-250.0,0.00029451,2]
[339012503,1727123439419,-250.0,0.00029528,2]
[339012504,1727123439428,-500.0,0.00029533,5]
[339012505,1727123439437,-500.0,0.00029533,5]
[339012506,1727123439447,-500.0,0.00029533,5]
[339012507,1727123439457,-500.0,0.00029533,2]
[339012508,1727123439467,-500.0,0.00029533,5]
[339012509,1727123439476,-201.310423,0.00029639,2]
[339012510,1727123439486,-500.0,0.00029867,5]
[339012511,1727123439495,-500.0,0.00029867,5]
[339012512,1727123439504,-500.0,0.00029867,5]
[339012513,1727123439513,-500.0,0.00029867,5]
[339012514,1727123439522,-500.0,0.00029867,5]
[339012515,1727123439532,-325.26622476,0.00029867,5]
[339012516,1727123439541,-500.0,0.00029867,5]
[339012517,1727123439550,-500.0,0.00029867,5]
[339012518,1727123439560,-500.0,0.00029867,5]
[339012519,1727123439570,-500.0,0.0003,5]
[339012520,1727123439579,-161.15052263,0.0003,5]
[339012521,1727123439588,-201.310423,0.00030324,2]
[339012522,1727123439598,-500.38095106,0.00030415,5]
[339012523,1727123439608,-500.0,0.00030415,5]
[339012524,1727123439617,-179.402,0.00030592,26]
[339012525,1727123439627,-500.0,0.000306,5]
[339012526,1727123439636,-500.0,0.000306,5]
[339012527,1727123439645,-500.0,0.000306,5]
[339012528,1727123439655,-500.68393457,0.000306,5]
[339012529,1727123439664,-376.66092736,0.000306,5]
[339012530,1727123439674,-420.0,0.00030975,2]
[339012531,1727123439683,-1130.23931147,0.00031214,2]
[339012532,1727123439692,-500.0,0.00031506,30]
[339012533,1727123439702,-500.0,0.00031506,30]
[339012534,1727123439711,-500.0,0.00031506,30]
[339012535,1727123439721,-306.0,0.00032164,2]
[339012536,1727123439735,-153.0,0.0003219,2]
[339012537,1727123439745,-153.0,0.0003219,2]
[339012538,1727123439754,-153.0,0.0003219,2]
[339012539,1727123439764,-153.0,0.00032191,2]
[339012540,1727123439775,-153.0,0.00032192,2]
[339012541,1727123439784,-153.0,0.00032192,2]
[339012542,1727123439794,-153.0,0.00032192,2]
[339012543,1727123439806,-153.0,0.00032192,2]
[339012544,1727123439815,-153.0,0.00032193,2]
[339012545,1727123439825,-153.0,0.00032193,2]
[339012547,1727123439835,-153.0,0.00032193,2]
[339012549,1727123439844,-153.0,0.00032193,2]
[339012551,1727123439855,-153.0,0.00032194,2]
[339012553,1727123439864,-153.0,0.00032194,2]
[339012554,1727123439874,-153.0,0.00032194,2]
[339012555,1727123439883,-153.0,0.00032195,2]
[339012557,1727123439893,-151.0,0.00032342,6]
[339012558,1727123439903,-169.19179425,0.00032745,2]
[339012560,1727123439912,-1000.0,0.00032756,2]
[339012562,1727123439921,-269.1,0.00032836,3]
[339012563,1727123439932,-188.13090507,0.00032845,2]
[339012564,1727123439942,-500.0,0.00032845,2]
[339012565,1727123439951,-646.98156737,0.00032845,2]
[339012566,1727123439961,-199.67733624,0.00032845,2]
[339012567,1727123439971,-272.66553231,0.00032845,2]
[339012569,1727123439981,-500.0,0.00032845,2]
[339012571,1727123439990,-500.0,0.00032845,2]
[339012572,1727123439999,-500.0,0.00032845,2]
[339012573,1727123440008,-263.96241564,0.00032845,2]
[339012574,1727123440017,-500.0,0.00032845,2]
[339012575,1727123440027,-500.0,0.00032845,2]
[339012576,1727123440036,-500.0,0.00032845,2]
[339012577,1727123440046,-79312.3568449,0.00032846,4]
[339012578,1727123440055,-27308.7813365,0.00032846,5]
[339012580,1727123440064,-317249.42738,0.00032856,4]
[339012582,1727123440073,-109235.125346,0.00032856,5]